[Event "*** Titled Tuesday Blitz"]
[Site "Chess.com"]
[Date "2020.04.07"]
[Round "2"]
[White "1f3_2g41-0"]
[Black "canwedoit"]
[Result "1-0"]
[WhiteElo "2163"]
[BlackElo "2620"]
[TimeControl "180+1"]
[EndTime "13:20:15 PDT"]
[Termination "1f3_2g41-0 won by resignation"]

1. e4 {[%clk 0:03:00.9]} 1... c5 {[%clk 0:03:00]} 2. Nf3 {[%clk 0:03:00]} 2...
Nc6 {[%clk 0:03:00]} 3. Bb5 {[%clk 0:02:58.6]} 3... g6 {[%clk 0:03:00]} 4. O-O
{[%clk 0:02:57.4]} 4... Bg7 {[%clk 0:02:59.6]} 5. c3 {[%clk 0:02:57.7]} 5... Nf6
{[%clk 0:02:59.6]} 6. d4 {[%clk 0:02:57.8]} 6... cxd4 {[%clk 0:02:59.4]} 7. cxd4
{[%clk 0:02:57.7]} 7... Nxe4 {[%clk 0:02:58.7]} 8. d5 {[%clk 0:02:58.1]} 8...
Nd6 {[%clk 0:02:58.5]} 9. Bd3 {[%clk 0:02:55.4]} 9... Nb4 {[%clk 0:02:58.3]} 10.
Re1 {[%clk 0:02:53.7]} 10... O-O {[%clk 0:02:53.9]} 11. Nc3 {[%clk 0:02:52.8]}
11... Nxd3 {[%clk 0:02:52.3]} 12. Qxd3 {[%clk 0:02:52.6]} 12... Nf5 {[%clk
0:02:52.9]} 13. Bf4 {[%clk 0:02:50.8]} 13... d6 {[%clk 0:02:52]} 14. Rac1 {[%clk
0:02:46]} 14... Bd7 {[%clk 0:02:49.3]} 15. Ne4 {[%clk 0:02:26.6]} 15... Qb6
{[%clk 0:02:43.8]} 16. Ng3 {[%clk 0:02:22.5]} 16... Rac8 {[%clk 0:02:40.8]} 17.
Rxc8 {[%clk 0:02:13.5]} 17... Rxc8 {[%clk 0:02:41.7]} 18. b3 {[%clk 0:02:07.7]}
18... Nxg3 {[%clk 0:02:33.5]} 19. hxg3 {[%clk 0:02:07.5]} 19... Bf5 {[%clk
0:02:28.1]} 20. Qe2 {[%clk 0:02:06.9]} 20... Rc7 {[%clk 0:02:20.9]} 21. Be3
{[%clk 0:02:00.1]} 21... Qa5 {[%clk 0:02:20.5]} 22. Rd1 {[%clk 0:01:55.4]} 22...
Rc2 {[%clk 0:02:15.4]} 23. Bd2 {[%clk 0:01:53.4]} 23... Qc7 {[%clk 0:02:08.3]}
24. Qb5 {[%clk 0:01:45.9]} 24... Rc5 {[%clk 0:02:05.9]} 25. Qe8+ {[%clk
0:01:44.9]} 25... Bf8 {[%clk 0:02:05.9]} 26. Ng5 {[%clk 0:01:40.7]} 26... e5
{[%clk 0:01:59.1]} 27. dxe6 {[%clk 0:01:25.5]} 27... fxe6 {[%clk 0:01:59.5]} 28.
Nxe6 {[%clk 0:01:14.3]} 28... Bxe6 {[%clk 0:01:58.8]} 29. Qxe6+ {[%clk
0:01:15.2]} 29... Qf7 {[%clk 0:01:57.2]} 30. Qe4 {[%clk 0:01:09.2]} 30... Qd5
{[%clk 0:01:51.2]} 31. Qg4 {[%clk 0:01:01.8]} 31... Qf5 {[%clk 0:01:46.9]} 32.
Qd4 {[%clk 0:00:57.6]} 32... Rd5 {[%clk 0:01:37.9]} 33. Qc4 {[%clk 0:00:52.2]}
33... b5 {[%clk 0:01:37.6]} 34. Qe2 {[%clk 0:00:49.8]} 34... Qe5 {[%clk
0:01:18.2]} 35. Be3 {[%clk 0:00:46.8]} 35... a6 {[%clk 0:01:11.5]} 36. Rxd5
{[%clk 0:00:44.2]} 36... Qxd5 {[%clk 0:01:11.7]} 37. Qd2 {[%clk 0:00:44.2]}
37... Qxd2 {[%clk 0:01:06]} 38. Bxd2 {[%clk 0:00:45.1]} 38... Kf7 {[%clk
0:01:05.5]} 39. Kf1 {[%clk 0:00:44.9]} 39... Ke6 {[%clk 0:01:06]} 40. Ke2 {[%clk
0:00:45.3]} 40... Kd5 {[%clk 0:01:00.7]} 41. Kd3 {[%clk 0:00:45.4]} 41... Bg7
{[%clk 0:00:59.8]} 42. g4 {[%clk 0:00:43.8]} 42... Bd4 {[%clk 0:00:59.1]} 43. f3
{[%clk 0:00:43.5]} 43... Bf2 {[%clk 0:00:55.4]} 44. Bb4 {[%clk 0:00:43.4]} 44...
Bc5 {[%clk 0:00:52.6]} 45. Bc3 {[%clk 0:00:43.1]} 45... Bb6 {[%clk 0:00:47.2]}
46. Bb4 {[%clk 0:00:42.7]} 46... Bd8 {[%clk 0:00:46.7]} 47. Bd2 {[%clk
0:00:42.5]} 47... Bf6 {[%clk 0:00:46.7]} 48. Bf4 {[%clk 0:00:42.6]} 48... Be5
{[%clk 0:00:46.9]} 49. Be3 {[%clk 0:00:42.6]} 49... Ke6 {[%clk 0:00:43.3]} 50.
Ke4 {[%clk 0:00:41.9]} 50... d5+ {[%clk 0:00:38.5]} 51. Kd3 {[%clk 0:00:42.3]}
51... Kd6 {[%clk 0:00:38.6]} 52. Bd2 {[%clk 0:00:42.3]} 52... Kc5 {[%clk
0:00:37.7]} 53. f4 {[%clk 0:00:38.7]} 53... Bf6 {[%clk 0:00:33.2]} 54. f5 {[%clk
0:00:38.5]} 54... gxf5 {[%clk 0:00:29.7]} 55. gxf5 {[%clk 0:00:38.5]} 55... h5
{[%clk 0:00:29.6]} 56. Be3+ {[%clk 0:00:36.9]} 56... Kb4 {[%clk 0:00:28.5]} 57.
Bd4 {[%clk 0:00:37.4]} 57... Be7 {[%clk 0:00:20.3]} 58. f6 {[%clk 0:00:37.4]}
58... Bf8 {[%clk 0:00:19.6]} 59. Bb2 {[%clk 0:00:37.4]} 59... a5 {[%clk
0:00:19]} 60. Kd4 {[%clk 0:00:36.6]} 60... a4 {[%clk 0:00:16.9]} 61. bxa4 {[%clk
0:00:35.8]} 61... bxa4 {[%clk 0:00:17.4]} 62. Kxd5 {[%clk 0:00:35.9]} 62... a3
{[%clk 0:00:17.9]} 63. Ba1 {[%clk 0:00:36]} 63... Bh6 {[%clk 0:00:15.7]} 64. f7
{[%clk 0:00:34.3]} 64... Bf8 {[%clk 0:00:14]} 65. Ke6 {[%clk 0:00:34.6]} 65...
Kc4 {[%clk 0:00:14.2]} 66. Bf6 {[%clk 0:00:31.9]} 66... Kd3 {[%clk 0:00:12.6]}
67. Be7 {[%clk 0:00:32.1]} 67... Bh6 {[%clk 0:00:11]} 68. Bxa3 {[%clk
0:00:31.4]} 68... Ke2 {[%clk 0:00:11.1]} 69. Bd6 {[%clk 0:00:16.7]} 69... Kf2
{[%clk 0:00:09.7]} 70. g3 {[%clk 0:00:17]} 70... Ke2 {[%clk 0:00:05.5]} 71. a4
{[%clk 0:00:17.5]} 71... Kd3 {[%clk 0:00:05.5]} 72. a5 {[%clk 0:00:18.1]} 72...
Kc4 {[%clk 0:00:05.4]} 73. a6 {[%clk 0:00:18.8]} 73... Be3 {[%clk 0:00:04.7]}
74. f8=Q {[%clk 0:00:18.1]} 1-0

[Event "*** Titled Tuesday Blitz"]
[Site "Chess.com"]
[Date "2020.04.07"]
[Round "2"]
[White "FLamps8"]
[Black "kuli4ik"]
[Result "0-1"]
[WhiteElo "2528"]
[BlackElo "2793"]
[TimeControl "180+1"]
[EndTime "13:20:16 PDT"]
[Termination "kuli4ik won by resignation"]

1. d4 {[%clk 0:03:00.9]} 1... d5 {[%clk 0:02:57.2]} 2. c4 {[%clk 0:03:00.3]}
2... c6 {[%clk 0:02:57.5]} 3. Nf3 {[%clk 0:03:00]} 3... Nf6 {[%clk 0:02:56.5]}
4. e3 {[%clk 0:03:00]} 4... Bf5 {[%clk 0:02:56.5]} 5. Nc3 {[%clk 0:02:59.4]}
5... e6 {[%clk 0:02:53.4]} 6. Bd3 {[%clk 0:02:59.8]} 6... Bg6 {[%clk 0:02:50.5]}
7. O-O {[%clk 0:02:58.9]} 7... Nbd7 {[%clk 0:02:49.3]} 8. Qe2 {[%clk 0:02:58.8]}
8... Bb4 {[%clk 0:02:42.2]} 9. Bd2 {[%clk 0:02:57.7]} 9... Bxc3 {[%clk
0:02:35.7]} 10. Bxc3 {[%clk 0:02:57.3]} 10... O-O {[%clk 0:02:32.6]} 11. Nd2
{[%clk 0:02:52.7]} 11... Bxd3 {[%clk 0:02:26.9]} 12. Qxd3 {[%clk 0:02:52.5]}
12... Re8 {[%clk 0:02:14.2]} 13. e4 {[%clk 0:02:42.9]} 13... dxe4 {[%clk
0:01:59.8]} 14. Nxe4 {[%clk 0:02:43.8]} 14... Nxe4 {[%clk 0:01:58.8]} 15. Qxe4
{[%clk 0:02:44.7]} 15... Qg5 {[%clk 0:01:54.7]} 16. Rfe1 {[%clk 0:02:36.3]}
16... Nf6 {[%clk 0:01:51.8]} 17. Qe5 {[%clk 0:02:34.4]} 17... Qxe5 {[%clk
0:01:51.2]} 18. Rxe5 {[%clk 0:02:34]} 18... Nd7 {[%clk 0:01:47.4]} 19. Ree1
{[%clk 0:02:31.6]} 19... b5 {[%clk 0:01:47.5]} 20. cxb5 {[%clk 0:01:55]} 20...
cxb5 {[%clk 0:01:44.6]} 21. Ba5 {[%clk 0:01:48.1]} 21... Nf6 {[%clk 0:01:38.1]}
22. Rac1 {[%clk 0:01:44.2]} 22... Rac8 {[%clk 0:01:37.6]} 23. Kf1 {[%clk
0:01:31.9]} 23... Nd5 {[%clk 0:01:34.8]} 24. g3 {[%clk 0:01:09.8]} 24... Kf8
{[%clk 0:01:33.5]} 25. Ke2 {[%clk 0:01:09]} 25... Ke7 {[%clk 0:01:33]} 26. Kd3
{[%clk 0:01:01.8]} 26... Kd7 {[%clk 0:01:32.3]} 27. Bd2 {[%clk 0:00:52.8]} 27...
a6 {[%clk 0:01:22.9]} 28. g4 {[%clk 0:00:48]} 28... h6 {[%clk 0:01:18.9]} 29. f3
{[%clk 0:00:44.1]} 29... Rh8 {[%clk 0:01:16.6]} 30. h4 {[%clk 0:00:36.7]} 30...
h5 {[%clk 0:01:11.7]} 31. Rxc8 {[%clk 0:00:34.6]} 31... Kxc8 {[%clk 0:01:11.3]}
32. Rh1 {[%clk 0:00:22.4]} 32... Kd7 {[%clk 0:01:09.4]} 33. Ke4 {[%clk
0:00:20.6]} 33... Rc8 {[%clk 0:00:58.7]} 34. Rc1 {[%clk 0:00:19.3]} 34... Nf6+
{[%clk 0:00:56.5]} 35. Kf4 {[%clk 0:00:16.8]} 35... Rh8 {[%clk 0:00:57]} 36. Rh1
{[%clk 0:00:10.8]} 36... hxg4 {[%clk 0:00:47.1]} 37. fxg4 {[%clk 0:00:11.7]}
37... g5+ {[%clk 0:00:47.4]} 38. Kf3 {[%clk 0:00:08.6]} 38... gxh4 {[%clk
0:00:35.6]} 39. Bg5 {[%clk 0:00:08]} 39... Nd5 {[%clk 0:00:33.9]} 40. Rxh4
{[%clk 0:00:08.4]} 40... Rxh4 {[%clk 0:00:31.4]} 41. Bxh4 {[%clk 0:00:09.3]}
41... Nb4 {[%clk 0:00:31.4]} 42. a3 {[%clk 0:00:07.2]} 42... Nd3 {[%clk
0:00:21.7]} 43. b3 {[%clk 0:00:05.4]} 43... Nc1 {[%clk 0:00:21.6]} 44. b4 {[%clk
0:00:05.4]} 44... Nd3 {[%clk 0:00:20.5]} 45. Ke4 {[%clk 0:00:05.1]} 45... Nb2
{[%clk 0:00:19.2]} 46. d5 {[%clk 0:00:04.5]} 46... Nc4 {[%clk 0:00:18.7]} 47.
dxe6+ {[%clk 0:00:03.9]} 47... Kxe6 {[%clk 0:00:19.6]} 48. Kd4 {[%clk 0:00:04]}
48... Nxa3 {[%clk 0:00:18.5]} 49. Kc5 {[%clk 0:00:04.5]} 49... Nc4 {[%clk
0:00:12.5]} 50. Bg5 {[%clk 0:00:03.5]} 50... Ne5 {[%clk 0:00:11.4]} 51. Kb6
{[%clk 0:00:02.6]} 51... Kd5 {[%clk 0:00:11.5]} 52. Kxa6 {[%clk 0:00:02.8]}
52... Kc6 {[%clk 0:00:11.7]} 53. Bf4 {[%clk 0:00:01.9]} 53... Nxg4 {[%clk
0:00:12.1]} 54. Bg3 {[%clk 0:00:02.1]} 54... f5 {[%clk 0:00:12.2]} 55. Ka5
{[%clk 0:00:03]} 55... Ne3 {[%clk 0:00:11.6]} 56. Bf4 {[%clk 0:00:03.2]} 56...
Nd5 {[%clk 0:00:11.7]} 57. Be5 {[%clk 0:00:03.8]} 57... f4 {[%clk 0:00:11.9]}
58. Bd4 {[%clk 0:00:03.8]} 58... f3 {[%clk 0:00:12.2]} 59. Ka6 {[%clk
0:00:04.7]} 59... Nxb4+ {[%clk 0:00:12.3]} 60. Ka5 {[%clk 0:00:04.4]} 60... Nd3
{[%clk 0:00:13.2]} 61. Be3 {[%clk 0:00:03]} 61... f2 {[%clk 0:00:13.3]} 0-1

[Event "*** Titled Tuesday Blitz"]
[Site "Chess.com"]
[Date "2020.04.07"]
[Round "2"]
[White "stasiek18"]
[Black "Incognito_Knight"]
[Result "0-1"]
[WhiteElo "2409"]
[BlackElo "2712"]
[TimeControl "180+1"]
[EndTime "13:20:17 PDT"]
[Termination "Incognito_Knight won by resignation"]

1. d4 {[%clk 0:03:00.9]} 1... d5 {[%clk 0:02:45.3]} 2. Bf4 {[%clk 0:02:58.1]}
2... Nf6 {[%clk 0:02:45.4]} 3. e3 {[%clk 0:02:57.9]} 3... c5 {[%clk 0:02:45.5]}
4. Nf3 {[%clk 0:02:54.8]} 4... Nc6 {[%clk 0:02:44.5]} 5. c3 {[%clk 0:02:52.7]}
5... Qb6 {[%clk 0:02:43.7]} 6. Qc1 {[%clk 0:02:42.2]} 6... Bf5 {[%clk
0:02:40.6]} 7. Nbd2 {[%clk 0:02:42.2]} 7... e6 {[%clk 0:02:27]} 8. Nh4 {[%clk
0:02:35.2]} 8... Be4 {[%clk 0:02:22.1]} 9. f3 {[%clk 0:02:30.5]} 9... Bg6 {[%clk
0:02:20.2]} 10. Nxg6 {[%clk 0:02:04.3]} 10... hxg6 {[%clk 0:02:21.1]} 11. Rb1
{[%clk 0:01:49.8]} 11... Rc8 {[%clk 0:02:20.2]} 12. Qd1 {[%clk 0:01:49.7]} 12...
Be7 {[%clk 0:02:05.6]} 13. g4 {[%clk 0:01:42]} 13... Qd8 {[%clk 0:01:40.6]} 14.
Bb5 {[%clk 0:01:38.4]} 14... a6 {[%clk 0:01:35.3]} 15. Bxc6+ {[%clk 0:01:38]}
15... Rxc6 {[%clk 0:01:35.3]} 16. O-O {[%clk 0:01:31.7]} 16... Bd6 {[%clk
0:01:34.9]} 17. Bxd6 {[%clk 0:01:28.5]} 17... Qxd6 {[%clk 0:01:33.4]} 18. f4
{[%clk 0:01:18.5]} 18... cxd4 {[%clk 0:01:15.6]} 19. exd4 {[%clk 0:01:17.9]}
19... Rh4 {[%clk 0:01:07.4]} 20. g5 {[%clk 0:00:57.2]} 20... Nh5 {[%clk
0:00:58.3]} 21. Nf3 {[%clk 0:00:49.1]} 21... Rg4+ {[%clk 0:00:35.1]} 22. Kh1
{[%clk 0:00:49.3]} 22... Rxf4 {[%clk 0:00:35.8]} 23. Ne5 {[%clk 0:00:49.2]}
23... Rxf1+ {[%clk 0:00:35.8]} 24. Qxf1 {[%clk 0:00:48.8]} 24... Rc7 {[%clk
0:00:36.2]} 25. Re1 {[%clk 0:00:40]} 25... Qe7 {[%clk 0:00:32.1]} 26. Qg2 {[%clk
0:00:04.3]} 26... Kd8 {[%clk 0:00:32]} 27. Qg4 {[%clk 0:00:03.8]} 27... Qe8
{[%clk 0:00:24]} 28. Rf1 {[%clk 0:00:03.6]} 28... Kc8 {[%clk 0:00:19.8]} 29. h3
{[%clk 0:00:01.1]} 29... Kb8 {[%clk 0:00:17.7]} 30. Kg1 {[%clk 0:00:01.5]} 30...
Ka7 {[%clk 0:00:16.1]} 31. a3 {[%clk 0:00:01.5]} 31... Re7 {[%clk 0:00:14.1]}
32. Qf3 {[%clk 0:00:01.8]} 32... f6 {[%clk 0:00:13.8]} 33. gxf6 {[%clk
0:00:01.6]} 33... gxf6 {[%clk 0:00:14.7]} 34. Nd3 {[%clk 0:00:01.7]} 34... Qd8
{[%clk 0:00:12.4]} 35. Nc5 {[%clk 0:00:02.6]} 35... Qd6 {[%clk 0:00:11.7]} 36.
Kg2 {[%clk 0:00:01.9]} 36... Rh7 {[%clk 0:00:10.5]} 37. Qg4 {[%clk 0:00:01.9]}
37... f5 {[%clk 0:00:09.1]} 38. Qf3 {[%clk 0:00:02.3]} 38... g5 {[%clk
0:00:08.9]} 39. Nd3 {[%clk 0:00:02.6]} 39... g4 {[%clk 0:00:08.2]} 40. hxg4
{[%clk 0:00:02.4]} 40... fxg4 {[%clk 0:00:08.5]} 41. Qe3 {[%clk 0:00:03.3]}
41... g3 {[%clk 0:00:06.6]} 42. Ne5 {[%clk 0:00:03.1]} 42... Ng7 {[%clk
0:00:05.8]} 43. Rh1 {[%clk 0:00:03]} 43... Nf5 {[%clk 0:00:05.8]} 44. Qf4 {[%clk
0:00:02]} 44... Rxh1 {[%clk 0:00:05.9]} 45. Kxh1 {[%clk 0:00:02.9]} 45... Qe7
{[%clk 0:00:05.1]} 46. Kg2 {[%clk 0:00:03.2]} 46... Qh7 {[%clk 0:00:05]} 47. Nf3
{[%clk 0:00:03]} 47... Qh8 {[%clk 0:00:04]} 48. Qe5 {[%clk 0:00:02.9]} 48... Qh5
{[%clk 0:00:03.7]} 49. Qxe6 {[%clk 0:00:02.5]} 49... Nh4+ {[%clk 0:00:03.9]} 50.
Nxh4 {[%clk 0:00:02.5]} 50... Qxh4 {[%clk 0:00:04.8]} 51. Qxd5 {[%clk
0:00:01.4]} 51... Qh2+ {[%clk 0:00:04.9]} 52. Kf3 {[%clk 0:00:01.5]} 52... Qh1+
{[%clk 0:00:05.3]} 0-1

[Event "*** Titled Tuesday Blitz"]
[Site "Chess.com"]
[Date "2020.04.07"]
[Round "2"]
[White "Ceejay271"]
[Black "Jbd735"]
[Result "1-0"]
[WhiteElo "2282"]
[BlackElo "2461"]
[TimeControl "180+1"]
[EndTime "13:20:20 PDT"]
[Termination "Ceejay271 won by checkmate"]

1. Nf3 {[%clk 0:03:00.9]} 1... d5 {[%clk 0:02:59.4]} 2. e3 {[%clk 0:02:59.8]}
2... Nf6 {[%clk 0:02:58.2]} 3. b3 {[%clk 0:02:53.9]} 3... c5 {[%clk 0:02:54.8]}
4. Bb2 {[%clk 0:02:53.2]} 4... Nc6 {[%clk 0:02:54.5]} 5. d4 {[%clk 0:02:48.2]}
5... e6 {[%clk 0:02:52.6]} 6. Be2 {[%clk 0:02:42]} 6... cxd4 {[%clk 0:02:52.3]}
7. exd4 {[%clk 0:02:38.3]} 7... Be7 {[%clk 0:02:52.1]} 8. O-O {[%clk 0:02:37.7]}
8... O-O {[%clk 0:02:51.4]} 9. c4 {[%clk 0:02:36.3]} 9... dxc4 {[%clk
0:02:48.4]} 10. bxc4 {[%clk 0:02:36.2]} 10... b6 {[%clk 0:02:47.2]} 11. Nc3
{[%clk 0:02:29.8]} 11... Bb7 {[%clk 0:02:43.5]} 12. Rc1 {[%clk 0:02:22.4]} 12...
Rc8 {[%clk 0:02:33.1]} 13. Qd2 {[%clk 0:01:52.4]} 13... Qd6 {[%clk 0:02:31.5]}
14. Rfd1 {[%clk 0:01:50.1]} 14... Rfd8 {[%clk 0:02:30.5]} 15. Nb5 {[%clk
0:01:40.6]} 15... Qb8 {[%clk 0:02:27.7]} 16. h3 {[%clk 0:01:21.2]} 16... a6
{[%clk 0:02:08.7]} 17. Nc3 {[%clk 0:01:19.9]} 17... Qa8 {[%clk 0:01:18.4]} 18.
Qe3 {[%clk 0:01:18.2]} 18... Na5 {[%clk 0:01:17.2]} 19. Na4 {[%clk 0:01:16.1]}
19... Qa7 {[%clk 0:01:04.6]} 20. d5 {[%clk 0:01:15]} 20... Nxd5 {[%clk 0:00:20]}
21. cxd5 {[%clk 0:01:13.2]} 21... Rxc1 {[%clk 0:00:18.4]} 22. Rxc1 {[%clk
0:01:12.5]} 22... Bxd5 {[%clk 0:00:16.9]} 23. Qxb6 {[%clk 0:01:10.8]} 23... Qxb6
{[%clk 0:00:14.6]} 24. Nxb6 {[%clk 0:01:11.4]} 24... Bxa2 {[%clk 0:00:15.3]} 25.
Ra1 {[%clk 0:01:04.4]} 25... Bc5 {[%clk 0:00:07.7]} 26. Na4 {[%clk 0:01:01.3]}
26... Nb3 {[%clk 0:00:04.5]} 27. Rxa2 {[%clk 0:00:59.8]} 27... Ba7 {[%clk
0:00:03.2]} 28. Nc3 {[%clk 0:00:53.8]} 28... Nd4 {[%clk 0:00:02.3]} 29. Nxd4
{[%clk 0:00:53.2]} 29... Bxd4 {[%clk 0:00:03.2]} 30. Rxa6 {[%clk 0:00:53]} 30...
Rb8 {[%clk 0:00:03.1]} 31. Ra2 {[%clk 0:00:49.5]} 31... g6 {[%clk 0:00:02.9]}
32. Na4 {[%clk 0:00:48.2]} 32... Ba7 {[%clk 0:00:02.1]} 33. Be5 {[%clk
0:00:47.9]} 33... Rb1+ {[%clk 0:00:01.4]} 34. Kh2 {[%clk 0:00:48.2]} 34... Bxf2
{[%clk 0:00:01.9]} 35. Bf3 {[%clk 0:00:45.6]} 35... Bg1+ {[%clk 0:00:02.2]} 36.
Kg3 {[%clk 0:00:45.8]} 36... Be3 {[%clk 0:00:02.6]} 37. Bf4 {[%clk 0:00:44.9]}
37... Bg1 {[%clk 0:00:02.3]} 38. Be5 {[%clk 0:00:43.9]} 38... h5 {[%clk
0:00:02.4]} 39. h4 {[%clk 0:00:43.7]} 39... Kh7 {[%clk 0:00:02.4]} 40. Nc3
{[%clk 0:00:42.4]} 40... Rb3 {[%clk 0:00:01.5]} 41. Ne4 {[%clk 0:00:42.3]} 41...
f5 {[%clk 0:00:01.1]} 42. Ng5+ {[%clk 0:00:42]} 42... Kh6 {[%clk 0:00:01.2]} 43.
Ra6 {[%clk 0:00:42.2]} 43... Bf2+ {[%clk 0:00:01.1]} 44. Kxf2 {[%clk 0:00:42]}
44... Rxf3+ {[%clk 0:00:01.8]} 45. gxf3 {[%clk 0:00:39.9]} 45... f4 {[%clk
0:00:02]} 46. Ne4 {[%clk 0:00:36.4]} 46... Kh7 {[%clk 0:00:01.7]} 47. Ra7+
{[%clk 0:00:34.8]} 47... Kh6 {[%clk 0:00:02.6]} 48. Bxf4+ {[%clk 0:00:34.9]}
48... g5 {[%clk 0:00:02.3]} 49. hxg5+ {[%clk 0:00:33]} 49... Kg6 {[%clk
0:00:03.2]} 50. Ra6 {[%clk 0:00:32.4]} 50... Kf5 {[%clk 0:00:03.3]} 51. Rxe6
{[%clk 0:00:31.3]} 51... Kxe6 {[%clk 0:00:03.3]} 52. Kg3 {[%clk 0:00:31.7]}
52... Kf5 {[%clk 0:00:03.5]} 53. Be3 {[%clk 0:00:31.6]} 53... Kg6 {[%clk
0:00:03.5]} 54. Kh4 {[%clk 0:00:31.6]} 54... Kh7 {[%clk 0:00:03.7]} 55. Kxh5
{[%clk 0:00:31.8]} 55... Kg7 {[%clk 0:00:04.4]} 56. g6 {[%clk 0:00:31.9]} 56...
Kg8 {[%clk 0:00:04.7]} 57. Kh6 {[%clk 0:00:32]} 57... Kh8 {[%clk 0:00:05.2]} 58.
g7+ {[%clk 0:00:28.2]} 58... Kg8 {[%clk 0:00:06.1]} 59. Nf6+ {[%clk 0:00:28.2]}
59... Kf7 {[%clk 0:00:06.5]} 60. g8=Q+ {[%clk 0:00:27.9]} 60... Kxf6 {[%clk
0:00:07.1]} 61. Qg5+ {[%clk 0:00:27.7]} 61... Kf7 {[%clk 0:00:07.2]} 62. f4
{[%clk 0:00:26.7]} 62... Ke6 {[%clk 0:00:08.1]} 63. f5+ {[%clk 0:00:26.7]} 63...
Ke5 {[%clk 0:00:08.5]} 64. f6+ {[%clk 0:00:26.8]} 64... Ke4 {[%clk 0:00:09.4]}
65. f7 {[%clk 0:00:26.9]} 65... Kd3 {[%clk 0:00:10.3]} 66. f8=Q {[%clk
0:00:26.5]} 66... Ke2 {[%clk 0:00:11.2]} 67. Bf4 {[%clk 0:00:26.3]} 67... Kd3
{[%clk 0:00:11.3]} 68. Qe5 {[%clk 0:00:24.5]} 68... Kc4 {[%clk 0:00:11.4]} 69.
Qd8 {[%clk 0:00:23]} 69... Kb4 {[%clk 0:00:11.3]} 70. Qec7 {[%clk 0:00:22.6]}
70... Kb5 {[%clk 0:00:11.3]} 71. Qdb8+ {[%clk 0:00:22.5]} 71... Ka6 {[%clk
0:00:11.7]} 72. Qca7# {[%clk 0:00:22.6]} 1-0

[Event "*** Titled Tuesday Blitz"]
[Site "Chess.com"]
[Date "2020.04.07"]
[Round "2"]
[White "sofaceindisguise"]
[Black "Saloni1299"]
[Result "1-0"]
[WhiteElo "2639"]
[BlackElo "2167"]
[TimeControl "180+1"]
[EndTime "13:20:22 PDT"]
[Termination "sofaceindisguise won by checkmate"]

1. d4 {[%clk 0:02:55.5]} 1... Nf6 {[%clk 0:02:59.6]} 2. c4 {[%clk 0:02:55.3]}
2... g6 {[%clk 0:03:00]} 3. Nc3 {[%clk 0:02:54.3]} 3... d5 {[%clk 0:03:00.2]} 4.
cxd5 {[%clk 0:02:49.2]} 4... Nxd5 {[%clk 0:03:01.1]} 5. Bd2 {[%clk 0:02:49.6]}
5... Bg7 {[%clk 0:03:00.1]} 6. e3 {[%clk 0:02:49.1]} 6... O-O {[%clk 0:02:58.8]}
7. Rc1 {[%clk 0:02:41.9]} 7... c6 {[%clk 0:02:52.8]} 8. e4 {[%clk 0:02:39.6]}
8... Nb6 {[%clk 0:02:41.8]} 9. Be3 {[%clk 0:02:28.9]} 9... e5 {[%clk 0:02:38.1]}
10. dxe5 {[%clk 0:02:25.6]} 10... Bxe5 {[%clk 0:02:31.5]} 11. Qc2 {[%clk
0:02:20.6]} 11... N8d7 {[%clk 0:02:26.6]} 12. f4 {[%clk 0:02:17.6]} 12... Bg7
{[%clk 0:02:26.6]} 13. Nf3 {[%clk 0:02:18]} 13... Nf6 {[%clk 0:02:22.9]} 14. h3
{[%clk 0:02:05]} 14... Nh5 {[%clk 0:02:17.9]} 15. Qf2 {[%clk 0:02:00.2]} 15...
Bh6 {[%clk 0:02:03.7]} 16. g3 {[%clk 0:01:56.1]} 16... Be6 {[%clk 0:01:58.8]}
17. b3 {[%clk 0:01:51.2]} 17... Qe7 {[%clk 0:01:56.5]} 18. Bg2 {[%clk
0:01:48.9]} 18... Bg7 {[%clk 0:01:36.2]} 19. O-O {[%clk 0:01:47.2]} 19... Rfd8
{[%clk 0:01:32.4]} 20. e5 {[%clk 0:01:35.4]} 20... Rd3 {[%clk 0:01:21.3]} 21.
Bc5 {[%clk 0:01:32.1]} 21... Qd7 {[%clk 0:01:17.5]} 22. Rfd1 {[%clk 0:01:24.6]}
22... Rd8 {[%clk 0:01:14.9]} 23. Kh2 {[%clk 0:01:23.3]} 23... Rxd1 {[%clk
0:01:06.2]} 24. Rxd1 {[%clk 0:01:20.5]} 24... Qc8 {[%clk 0:01:06.6]} 25. Rxd8+
{[%clk 0:01:18.9]} 25... Qxd8 {[%clk 0:01:07.2]} 26. Ne4 {[%clk 0:01:18.1]}
26... Bd5 {[%clk 0:01:05.4]} 27. Nd6 {[%clk 0:01:14.8]} 27... Qc7 {[%clk
0:01:00.5]} 28. Qe3 {[%clk 0:01:14]} 28... Bf8 {[%clk 0:00:58.2]} 29. g4 {[%clk
0:01:13.2]} 29... Ng7 {[%clk 0:00:58.5]} 30. a4 {[%clk 0:01:10.4]} 30... Nd7
{[%clk 0:00:58.5]} 31. Ba3 {[%clk 0:00:55.2]} 31... c5 {[%clk 0:00:57.1]} 32.
Nb5 {[%clk 0:00:54.7]} 32... Qb6 {[%clk 0:00:52.5]} 33. Nd2 {[%clk 0:00:44.3]}
33... Bxg2 {[%clk 0:00:51]} 34. Kxg2 {[%clk 0:00:45.2]} 34... Ne6 {[%clk
0:00:50.2]} 35. Bb2 {[%clk 0:00:40.3]} 35... Qc6+ {[%clk 0:00:48.9]} 36. Qf3
{[%clk 0:00:38.9]} 36... Qxf3+ {[%clk 0:00:46.6]} 37. Kxf3 {[%clk 0:00:39.8]}
37... a6 {[%clk 0:00:47.1]} 38. Nc3 {[%clk 0:00:38.4]} 38... Nd4+ {[%clk
0:00:46.8]} 39. Ke4 {[%clk 0:00:37.5]} 39... b5 {[%clk 0:00:45.3]} 40. Nd5
{[%clk 0:00:36.1]} 40... bxa4 {[%clk 0:00:37.7]} 41. Bxd4 {[%clk 0:00:31.5]}
41... cxd4 {[%clk 0:00:36.9]} 42. bxa4 {[%clk 0:00:31]} 42... Nc5+ {[%clk
0:00:36.8]} 43. Kxd4 {[%clk 0:00:31]} 43... Nxa4 {[%clk 0:00:37.4]} 44. Nc4
{[%clk 0:00:30.6]} 44... Nc5 {[%clk 0:00:36.7]} 45. f5 {[%clk 0:00:26.2]} 45...
gxf5 {[%clk 0:00:33]} 46. gxf5 {[%clk 0:00:27.1]} 46... Nb3+ {[%clk 0:00:32.4]}
47. Kc3 {[%clk 0:00:23.9]} 47... Nc5 {[%clk 0:00:32.9]} 48. Na5 {[%clk
0:00:20.4]} 48... Nd7 {[%clk 0:00:29.3]} 49. Kd4 {[%clk 0:00:20]} 49... Bc5+
{[%clk 0:00:27.3]} 50. Ke4 {[%clk 0:00:20.3]} 50... Ba3 {[%clk 0:00:24]} 51. f6
{[%clk 0:00:19.1]} 51... Bb2 {[%clk 0:00:22.5]} 52. Nc6 {[%clk 0:00:18.4]} 52...
a5 {[%clk 0:00:20.8]} 53. Nxa5 {[%clk 0:00:10.6]} 53... Bxe5 {[%clk 0:00:20.1]}
54. Nc6 {[%clk 0:00:10.4]} 54... Bxf6 {[%clk 0:00:19.3]} 55. Kf5 {[%clk
0:00:10.1]} 55... Bg7 {[%clk 0:00:18.9]} 56. Nce7+ {[%clk 0:00:09.1]} 56... Kh8
{[%clk 0:00:19.5]} 57. Nc6 {[%clk 0:00:09]} 57... Nf8 {[%clk 0:00:19.8]} 58. Nd8
{[%clk 0:00:08.7]} 58... Kg8 {[%clk 0:00:17.9]} 59. Ne7+ {[%clk 0:00:09]} 59...
Kh8 {[%clk 0:00:17.8]} 60. Nxf7# {[%clk 0:00:09.9]} 1-0